bitfinex/quotes_BTCUSD_20251116
["timestamp","ask_amount","ask_price","bid_price","bid_amount"]
[1763334053181,0.01979303,94488.0,94483.0,0.0935113]
[1763334053382,0.34279303,94487.0,94483.0,0.0935113]
[1763334053584,0.01979303,94486.0,94481.0,0.07480536]
[1763334053788,0.03586,94484.0,94480.0,0.07480536]
[1763334053990,0.0414719,94480.0,94471.0,0.07480536]
[1763334054195,0.323,94478.0,94468.0,0.07480536]
[1763334054397,0.323,94476.0,94466.0,0.07480536]
[1763334054662,0.323,94476.0,94463.0,0.00044817]
[1763334054663,0.05366,94464.0,94463.0,0.00044817]
[1763334054830,0.07345303,94464.0,94463.0,0.00044817]
[1763334055078,0.46589303,94464.0,94463.0,0.00044817]
[1763334055494,1.82368954,94464.0,94463.0,0.00044817]
[1763334056501,1.73860954,94464.0,94463.0,0.00044817]
[1763334056700,1.68787305,94464.0,94463.0,0.00044817]
[1763334057921,1.60279305,94464.0,94463.0,0.00044817]
[1763334058718,1.51771305,94464.0,94463.0,0.00044817]
[1763334058911,1.51771305,94464.0,94459.0,0.07480536]
[1763334058912,0.0414719,94460.0,94446.0,0.07480536]
[1763334059089,0.36641874,94455.0,94445.0,0.07480536]
[1763334059301,0.0414719,94450.0,94444.0,0.07480536]
[1763334059502,0.34279303,94449.0,94444.0,0.07480536]
[1763334059854,0.03586,94445.0,94444.0,0.07480536]
[1763334060053,0.05565303,94445.0,94443.0,0.07480536]
[1763334060266,0.39273,94445.0,94444.0,0.00155885]
[1763334060478,0.04341874,94439.0,94434.0,0.07480536]
[1763334060682,0.04341874,94437.0,94425.0,0.07480536]
[1763334060884,0.01984297,94436.0,94425.0,0.07480536]
[1763334061088,0.0414719,94430.0,94424.0,0.07480536]
[1763334061293,0.41291297,94429.0,94423.0,0.07480536]
[1763334061503,0.01984297,94428.0,94423.0,0.07480536]
[1763334061687,0.01984297,94427.0,94413.0,0.0935113]
[1763334061900,1.37482002,94429.0,94426.0,0.07497862]
[1763334062062,0.41290585,94428.0,94426.0,0.07497862]
[1763334062251,0.37869585,94427.0,94425.0,0.07497862]
[1763334062449,0.01983585,94426.0,94424.0,0.07497862]
[1763334062657,0.01983585,94425.0,94424.0,0.07497862]
[1763334062865,0.37903585,94425.0,94423.0,0.07497862]
[1763334063087,0.37903585,94425.0,94416.0,9e-05]
[1763334063088,0.41290585,94424.0,94418.0,0.07497862]
[1763334063451,0.03586,94417.0,94416.0,9e-05]
[1763334063600,1.43051587,94417.0,94416.0,9e-05]
[1763334063817,0.0414719,94410.0,94402.0,0.02051739]
[1763334064019,0.0414719,94370.0,94354.0,0.03614]
[1763334064223,0.01752,94354.0,94351.0,0.13091582]
[1763334064424,0.01752,94354.0,94350.0,0.0004]
[1763334064425,1.39823921,94354.0,94350.0,0.0004]
[1763334064600,0.323,94353.0,94350.0,0.0004]
[1763334064800,0.01983585,94352.0,94350.0,0.0004]
[1763334065038,0.35795849,94351.0,94350.0,0.0004]
[1763334065254,0.50182388,94351.0,94350.0,0.0004]
[1763334065480,0.67556326,94351.0,94350.0,0.0004]
[1763334066026,0.0414719,94330.0,94287.0,0.1609113]
[1763334066288,0.0414719,94330.0,94274.0,0.13091582]
[1763334066289,0.38625459,94329.0,94274.0,0.13091582]
[1763334066486,0.38625459,94329.0,94270.0,0.0004]
[1763334066487,0.04341874,94327.0,94270.0,0.0004]
[1763334066692,0.02745,94289.0,94270.0,0.0004]
[1763334066898,1.42210587,94289.0,94270.0,0.0004]
[1763334067327,0.34283585,94289.0,94285.0,0.03614]
[1763334067540,0.323,94289.0,94288.0,0.06749]
[1763334067746,0.323,94289.0,94288.0,0.077853]
[1763334067962,0.32344637,94289.0,94288.0,0.06749]
[1763334068551,0.32344637,94289.0,94288.0,0.11090874]
[1763334068775,0.32344637,94289.0,94288.0,0.06749]
[1763334070175,0.32344637,94289.0,94270.0,0.0004]
[1763334070176,0.323,94288.0,94270.0,0.0004]
[1763334070413,0.01752,94271.0,94270.0,0.0004]
[1763334070623,1.39234002,94271.0,94270.0,0.0004]
[1763334070826,0.323,94271.0,94270.0,0.0004]
[1763334071030,0.323,94271.0,94270.0,0.0678]
[1763334071757,0.323,94271.0,94270.0,0.0004]
[1763334072169,0.323,94271.0,94270.0,0.00525288]
[1763334073668,0.42666938,94271.0,94270.0,0.00525288]
[1763334074703,0.323,94271.0,94270.0,0.00525288]
[1763334074913,0.39307,94271.0,94270.0,0.00525288]
[1763334075332,0.5786,94271.0,94270.0,0.00525288]
[1763334075547,0.323,94271.0,94270.0,0.00525288]
[1763334076956,0.39188,94271.0,94270.0,0.00525288]
[1763334077161,0.53896812,94271.0,94270.0,0.00525288]
[1763334077368,0.0414719,94240.0,94221.0,0.03178]
[1763334077570,0.323,94231.0,94210.0,0.03178]
[1763334077777,0.323,94219.0,94178.0,0.06478]
[1763334078065,0.323,94209.0,94185.0,0.03178]
[1763334078289,1.37482002,94209.0,94176.0,0.03178]
[1763334078490,0.06888,94208.0,94176.0,0.03178]
[1763334078690,0.36641874,94207.0,94170.0,0.0004]
[1763334078902,0.323,94205.0,94170.0,0.0004]
[1763334079265,0.323,94205.0,94178.0,0.06478]
[1763334080364,1.05226557,94209.0,94170.0,0.0004]
[1763334080365,0.323,94208.0,94170.0,0.0004]
[1763334080589,0.39188,94204.0,94170.0,0.0004]
[1763334080808,0.36641874,94203.0,94170.0,0.0004]
[1763334081033,0.36641874,94201.0,94170.0,0.0004]
[1763334081253,0.0414719,94180.0,94170.0,0.0004]
[1763334081470,0.02024,94171.0,94170.0,0.0004]
[1763334081927,1.47306828,94171.0,94170.0,0.0004]
[1763334082144,1.67673766,94171.0,94170.0,0.0004]
[1763334082380,1.47306828,94171.0,94170.0,0.0004]
[1763334082598,1.47351356,94171.0,94170.0,0.0004]
[1763334083039,1.40463356,94171.0,94170.0,0.0004]
[1763334083264,0.32344528,94171.0,94170.0,0.0004]
[1763334083480,0.00044528,94171.0,94170.0,0.06797573]
[1763334083718,0.0414719,94190.0,94170.0,0.0747733]
[1763334083956,0.54434229,94220.0,94170.0,0.0747733]
[1763334083957,0.0414719,94210.0,94180.0,0.04341874]
[1763334084180,0.0414719,94200.0,94179.0,0.03178]
[1763334084400,0.0414719,94210.0,94180.0,0.10819874]
[1763334084823,0.0414719,94210.0,94182.0,0.04341874]
[1763334085278,0.0414719,94210.0,94184.0,0.04341874]
[1763334085532,0.02024,94260.0,94209.0,0.03178]
[1763334085754,0.0414719,94240.0,94210.0,0.06478]
[1763334086777,0.0414719,94240.0,94210.0,0.06491427]
[1763334087621,0.04341874,94276.0,94210.0,0.06491427]
[1763334087622,0.02024,94271.0,94213.0,0.04341874]
[1763334088049,0.02024,94271.0,94215.0,0.04341874]
[1763334088603,0.02024,94271.0,94217.0,0.04341874]
[1763334089016,0.02024,94271.0,94219.0,0.04341874]
[1763334089224,0.06888,94285.0,94220.0,0.55434228]
[1763334089427,0.10366938,94284.0,94230.0,0.04341874]
[1763334089628,0.323,94283.0,94230.0,0.04341874]
[1763334089829,0.06888,94282.0,94232.0,0.04341874]
[1763334090145,0.06888,94282.0,94234.0,0.04341874]
[1763334090354,0.01725494,94281.0,94235.0,0.01081987]
[1763334090550,0.01725494,94281.0,94235.0,0.07559987]
[1763334090747,0.01725494,94281.0,94235.0,0.10737987]
[1763334091179,0.01725494,94281.0,94236.0,0.06478]
[1763334093357,0.01969389,94280.0,94236.0,0.13883148]
[1763334093506,0.01969389,94279.0,94237.0,0.02248501]
[1763334093854,0.01969389,94278.0,94237.0,0.08726501]
[1763334094074,0.01969389,94277.0,94237.0,0.08726501]
[1763334094197,0.01969389,94276.0,94238.0,0.06478]
[1763334094396,0.01969389,94275.0,94239.0,0.09444312]
[1763334094591,0.01969389,94274.0,94242.0,0.07405148]
[1763334094815,0.02024,94290.0,94248.0,0.07405148]
[1763334095052,0.08860073,94289.0,94262.0,0.00022478]
[1763334095308,0.17031903,94288.0,94262.0,0.00022478]
[1763334095486,0.40828,94263.0,94262.0,0.00022478]
[1763334096015,0.0004461,94288.0,94262.0,0.06500478]
[1763334096147,0.01973277,94287.0,94262.0,0.06500478]
[1763334096349,0.01973277,94286.0,94262.0,0.06500478]
[1763334096566,0.0004461,94288.0,94264.0,0.07405148]
[1763334096772,0.06888,94287.0,94267.0,0.07405148]
[1763334097129,0.04341874,94259.0,94243.0,0.07490472]
[1763334097298,0.02002,94231.0,94186.0,0.03178]
[1763334097458,0.54434229,94210.0,94166.0,0.0935113]
[1763334097951,0.01975752,94209.0,94149.0,0.1900713]
[1763334098137,0.03275,94171.0,94142.0,0.0935113]
[1763334098351,0.01975752,94171.0,94170.0,0.00053427]
[1763334098699,0.01975752,94178.0,94170.0,0.00053427]
[1763334098902,0.323,94177.0,94170.0,0.00053427]
[1763334099266,0.01975752,94176.0,94170.0,0.00053427]
[1763334099467,0.08863752,94176.0,94170.0,0.00053427]
[1763334099670,0.01975752,94175.0,94170.0,0.00053427]
[1763334100003,0.01975752,94174.0,94170.0,0.00053427]
[1763334100204,0.323,94179.0,94170.0,0.00053427]
[1763334100478,1.05182002,94201.0,94171.0,0.06478]
[1763334100702,0.01975327,94199.0,94171.0,0.06478]
[1763334100871,0.01975327,94198.0,94171.0,0.06478]
[1763334101022,0.01975327,94197.0,94171.0,0.06478]
[1763334101218,1.05182002,94199.0,94171.0,0.06478]
[1763334101617,0.323,94198.0,94171.0,0.06478]
[1763334101816,0.323,94198.0,94171.0,0.07131143]
[1763334102443,1.05182002,94199.0,94172.0,0.04341874]
[1763334102648,1.06094828,94226.0,94172.0,0.04341874]
[1763334102649,1.05182002,94210.0,94172.0,0.04341874]
[1763334102878,0.323,94209.0,94173.0,0.06478]
[1763334103100,1.05182002,94210.0,94173.0,0.06478]
[1763334103242,0.323,94209.0,94174.0,0.01152644]
[1763334103708,0.323,94209.0,94175.0,0.06478]
[1763334105414,0.323,94207.0,94170.0,0.00053427]
[1763334105745,0.323,94199.0,94171.0,0.03147]
[1763334105950,1.37482002,94199.0,94171.0,0.03147]
[1763334106160,0.06833,94198.0,94170.0,0.00053427]
[1763334106366,0.323,94196.0,94170.0,0.00053427]
[1763334106569,0.04341874,94195.0,94170.0,0.00053427]
[1763334106806,0.323,94194.0,94170.0,0.00053427]
[1763334107237,0.06833,94193.0,94170.0,0.00053427]
[1763334107659,0.323,94189.0,94170.0,0.00053427]
[1763334107808,1.37482002,94189.0,94170.0,0.00053427]
[1763334109204,1.37482002,94189.0,94171.0,0.03147]
[1763334109594,1.37482002,94189.0,94188.0,0.00206752]
[1763334110009,1.05182002,94189.0,94188.0,0.00206752]
[1763334110546,1.37482002,94189.0,94188.0,0.00206752]
[1763334111204,0.323,94189.0,94188.0,0.00206752]
[1763334111854,1.37482002,94189.0,94188.0,0.00206752]
[1763334112390,1.44315002,94189.0,94188.0,0.00206752]
[1763334112586,0.36641874,94188.0,94170.0,0.00053427]
[1763334112794,0.04341874,94179.0,94170.0,0.00053427]
[1763334112999,0.04341874,94179.0,94140.0,0.07522603]
[1763334113000,0.04341874,94158.0,94140.0,0.07522603]
[1763334113198,0.04341874,94156.0,94140.0,0.00044528]
[1763334113397,0.02002,94141.0,94140.0,0.00044528]
[1763334113578,1.41461841,94141.0,94140.0,0.00044528]
[1763334113778,1.48294841,94141.0,94140.0,0.00044528]
[1763334114035,1.58661779,94141.0,94140.0,0.00044528]
[1763334114308,0.43474874,94140.0,94113.0,0.07522603]
[1763334114529,0.43474874,94140.0,94096.0,0.13091582]
[1763334114530,0.00999999,94120.0,94098.0,0.07522603]
[1763334114714,0.323,94111.0,94081.0,0.07522603]
[1763334114843,0.01977839,94110.0,94081.0,0.07522603]
[1763334115074,0.04341874,94108.0,94078.0,0.07522603]
[1763334115282,1.13927827,94110.0,94057.0,0.13091582]
[1763334115283,0.323,94090.0,94063.0,0.07522603]
[1763334115675,0.0322,94064.0,94058.0,0.07522603]
[1763334115857,0.323,94063.0,94053.0,0.07522603]
[1763334116088,0.323,94063.0,94014.0,0.07527348]
[1763334116089,0.00999999,94020.0,94014.0,0.07527348]
[1763334116303,0.04341874,94009.0,93963.0,0.1356659]
[1763334116521,0.04341874,94009.0,93963.0,0.00475008]
[1763334116522,0.323,93979.0,93963.0,0.00475008]
[1763334116722,0.08672069,93978.0,93963.0,0.00475008]
[1763334117260,0.36641874,93977.0,93963.0,0.00475008]
[1763334117803,0.323,93977.0,93963.0,0.00475008]
[1763334118249,0.00044399,93978.0,93964.0,0.06916]
[1763334119778,0.00044399,93978.0,93963.0,0.00475008]
[1763334121691,1.37482002,93899.0,93854.0,0.10174369]
[1763334122127,1.06094828,93935.0,93880.0,0.00999999]
[1763334122337,0.323,93941.0,93924.0,0.03147]
[1763334122543,0.323,93941.0,93925.0,0.06916]
[1763334122957,1.05182002,93962.0,93926.0,0.04341874]
[1763334123206,1.05182002,93988.0,93961.0,0.03147]
[1763334123391,1.06094828,94012.0,93962.0,0.11257874]
[1763334123595,1.05182002,94014.0,93977.0,0.00591124]
[1763334123795,1.05182002,94014.0,93964.0,0.04341874]
[1763334123998,0.00027617,94029.0,93971.0,0.04341874]
[1763334123999,1.05182002,94029.0,93971.0,0.04341874]
[1763334124205,0.85143205,94029.0,93971.0,0.04341874]
[1763334124346,1.05182002,94029.0,93973.0,0.04341874]
[1763334124768,1.05182002,94029.0,93975.0,0.04341874]
[1763334124956,1.05182002,94039.0,93975.0,0.04341874]
[1763334125157,0.10366938,94038.0,93981.0,0.04341874]
[1763334125387,0.17096,93982.0,93981.0,0.04341874]
[1763334125622,0.10366938,94038.0,93983.0,0.04341874]
[1763334125985,0.10366938,94038.0,93985.0,0.04341874]
[1763334126397,0.10366938,94038.0,93987.0,0.04341874]
[1763334126603,0.08063332,94037.0,93989.0,0.04341874]
[1763334127005,0.08063332,94037.0,93990.0,0.06916]
[1763334127208,0.40363332,94037.0,93990.0,0.06916]
[1763334127742,0.323,94037.0,93993.0,0.04341874]
[1763334127956,0.323,94037.0,93995.0,0.04341874]
[1763334128185,0.00044427,94037.0,93995.0,0.04341874]
[1763334128351,0.00044427,94037.0,93997.0,0.04341874]
[1763334128563,0.00044427,94037.0,94001.0,0.04341874]
[1763334128781,0.00044427,94037.0,94003.0,0.04341874]
[1763334129024,0.00044427,94037.0,94013.0,0.00490091]
[1763334129180,0.00044427,94037.0,94005.0,0.04341874]
[1763334129631,0.00044427,94037.0,94002.0,0.01659975]
[1763334129632,0.00044427,94037.0,94036.0,0.03147]
[1763334129837,0.00044427,94037.0,94006.0,0.06916]
[1763334132033,0.00044427,94037.0,94011.0,0.04341874]
[1763334132215,0.1600792,94100.0,94021.0,0.04341874]
[1763334132420,0.1600792,94100.0,94031.0,0.04341874]
[1763334132637,0.1600792,94100.0,94041.0,0.04341874]
[1763334133036,0.00028178,94099.0,94030.0,0.06916]
[1763334133278,0.01999998,94090.0,94009.0,0.06916]
[1763334133468,0.01999998,94090.0,93995.0,0.06916]
[1763334133469,0.323,94069.0,93995.0,0.06916]
[1763334133666,0.08252063,94068.0,94007.0,0.06916]
[1763334133894,0.08252063,94068.0,94021.0,0.06960427]
[1763334133895,0.00028178,94068.0,94021.0,0.06960427]
[1763334134092,0.323,94069.0,94021.0,0.06960427]
[1763334134501,0.00028221,94086.0,94036.0,0.00425583]
[1763334134703,0.17007919,94100.0,94030.0,0.00999999]
[1763334134704,0.1600792,94100.0,94030.0,0.00999999]
[1763334134913,0.1600792,94100.0,94041.0,0.04341874]
[1763334135088,0.1600792,94100.0,94049.0,0.04341874]
[1763334135446,0.2600792,94100.0,94043.0,0.04341874]
[1763334135577,0.2600792,94100.0,94048.0,0.04341874]
[1763334135798,0.2600792,94100.0,94051.0,0.04341874]
[1763334136006,0.1600792,94100.0,94053.0,0.04341874]
[1763334136206,0.1600792,94100.0,94068.0,0.04341874]
[1763334136426,0.1600792,94100.0,94069.0,0.09068069]
[1763334136775,0.1600792,94100.0,94099.0,0.0312]
[1763334136938,0.1600792,94100.0,94099.0,0.0313338]
[1763334137174,0.1600792,94100.0,94099.0,0.0950138]
[1763334137734,0.4830792,94100.0,94099.0,0.0950138]
[1763334138186,0.1600792,94100.0,94099.0,0.0950138]
[1763334138819,0.1600792,94100.0,94099.0,0.0313338]
[1763334138999,0.1600792,94100.0,94099.0,0.0001338]
[1763334139198,0.1600792,94100.0,94053.0,0.0312]
[1763334139199,0.323,94099.0,94053.0,0.0312]
[1763334139566,0.323,94099.0,94010.0,0.49220629]
[1763334139567,0.00027766,94098.0,94054.0,0.06368]
[1763334139848,0.3231333,94099.0,94056.0,0.04341874]
[1763334140049,0.3231333,94099.0,94085.0,0.00288259]
[1763334140245,0.3231333,94099.0,94056.0,0.04341874]
[1763334140246,0.0001333,94099.0,94060.0,0.00999999]
[1763334140464,0.0001333,94099.0,94055.0,0.0312]
[1763334140465,0.3231333,94099.0,94055.0,0.0312]
[1763334140949,0.3231333,94099.0,94055.0,0.09488]
[1763334141154,0.323,94097.0,94055.0,0.09488]
[1763334141366,0.323,94097.0,94056.0,0.06368]
[1763334141575,0.323,94097.0,94034.0,0.09068069]
[1763334141576,0.323,94097.0,94033.0,0.09488]
[1763334141787,0.323,94089.0,94033.0,0.0312]
[1763334141992,0.00999999,94080.0,94005.0,0.06368]
[1763334142203,0.00999999,94080.0,94006.0,0.01874187]
[1763334142204,0.323,94069.0,94006.0,0.01874187]
[1763334142411,0.36641874,94067.0,93990.0,0.06368]
[1763334142614,0.00999999,94050.0,93982.0,0.0312]
[1763334142813,0.01963499,94049.0,93992.0,0.06368]
[1763334143017,0.323,94048.0,93992.0,0.06368]
[1763334143217,0.323,94048.0,93982.0,0.0312]
[1763334143218,0.323,94046.0,93982.0,0.0312]
[1763334143449,0.49220629,94040.0,93966.0,0.0312]
[1763334143664,0.00999999,94030.0,93966.0,0.0312]
[1763334143894,0.34263499,94029.0,93966.0,0.0312]
[1763334144110,0.01963499,94028.0,93970.0,0.00999999]
[1763334144335,0.323,94029.0,93970.0,0.00999999]
[1763334144336,0.323,94029.0,93990.0,0.00999999]
[1763334144575,0.323,94029.0,94000.0,0.04341874]
[1763334145015,0.001,94030.0,94002.0,0.04341874]
[1763334145243,0.10366938,94080.0,94001.0,0.15436069]
[1763334145244,1.05182002,94062.0,94011.0,0.04341874]
[1763334145458,0.001,94029.0,94018.0,0.04341874]
[1763334145672,0.323,94061.0,94018.0,0.04341874]
[1763334145958,0.323,94061.0,94020.0,0.04341874]
[1763334146184,0.323,94061.0,94012.0,0.00534187]
[1763334146185,0.323,94049.0,94007.0,0.09226865]
[1763334146408,0.42666938,94045.0,94001.0,0.06368]
[1763334146622,0.01972445,94044.0,94001.0,0.06368]
[1763334146836,0.01972445,94043.0,93992.0,0.04341874]
[1763334147049,0.01972445,94042.0,93992.0,0.10709874]
[1763334147294,0.01972445,94041.0,93992.0,0.10709874]
[1763334147512,0.323,94039.0,94018.0,0.001]
[1763334147722,0.01972445,94038.0,93992.0,0.06368]
[1763334147940,0.01972445,94038.0,93993.0,0.13409943]
[1763334148161,0.001,94043.0,94037.0,0.0312]
[1763334148378,0.00013318,94046.0,94037.0,0.0312]
[1763334149333,0.00013318,94046.0,94017.0,0.09226865]
[1763334149556,0.00013318,94046.0,94002.0,0.09226865]
[1763334149557,0.323,94044.0,94002.0,0.09226865]
[1763334149777,0.323,94044.0,94007.0,0.06368]
[1763334149778,0.01974283,94043.0,94007.0,0.06368]
[1763334149990,0.323,94044.0,94008.0,0.04341874]
[1763334150203,0.39751727,94044.0,94008.0,0.04341874]
[1763334150414,0.39751727,94044.0,94010.0,0.04341874]
[1763334150632,0.07451727,94044.0,94010.0,0.04341874]
[1763334150856,0.07451727,94044.0,93996.0,0.13091582]
[1763334150857,0.0197501,94043.0,94028.0,0.00448017]
[1763334151071,0.323,94041.0,93996.0,0.09226865]
[1763334151303,0.323,94041.0,93987.0,0.13091582]
[1763334151304,0.323,94039.0,93987.0,0.13091582]
[1763334151538,0.323,94039.0,93976.0,0.06368]
[1763334151539,0.0197501,94038.0,93977.0,0.09226865]
[1763334151758,0.323,94036.0,93978.0,0.01559487]
[1763334151980,0.323,94036.0,93966.0,0.16211582]
[1763334151981,0.323,93999.0,93966.0,0.13091582]
[1763334152203,0.0197501,93998.0,93946.0,0.09226865]
[1763334152476,0.03792014,93998.0,93949.0,0.09226865]
[1763334152702,0.03792014,93998.0,93939.0,0.06368]
[1763334152703,0.0197501,93997.0,93945.0,0.09226865]
[1763334152937,0.01817004,93998.0,93932.0,0.0312]
[1763334152938,0.41726737,93996.0,93941.0,0.09226865]
[1763334153187,0.0197501,93995.0,93948.0,0.09226865]
[1763334153413,0.32313308,93996.0,93976.0,0.04341874]
[1763334153414,0.00013308,93996.0,93976.0,0.04341874]
[1763334153628,0.00013308,93996.0,93995.0,0.0312]
[1763334154078,0.323,94022.0,93995.0,0.12575436]
[1763334154286,0.12349496,94021.0,94004.0,0.07565065]
[1763334154501,0.01982558,94020.0,94004.0,0.07565065]
[1763334154727,0.01982558,94020.0,93995.0,0.00044427]
[1763334154728,0.01982558,94019.0,94005.0,0.07565065]
[1763334154992,0.01982558,94018.0,94003.0,0.07565065]
[1763334155195,0.01982558,94017.0,93995.0,0.00144427]
[1763334155431,0.10366938,94021.0,93995.0,0.00144427]
[1763334155432,0.323,94003.0,93995.0,0.00044427]
[1763334155662,0.01982558,94002.0,93995.0,0.00044427]
[1763334155886,1.05182002,94017.0,93995.0,0.00044427]
[1763334156108,1.05182002,94017.0,94002.0,0.07563687]
[1763334156109,0.01982213,94016.0,94002.0,0.07563687]
[1763334156364,0.01982213,94015.0,94003.0,0.07563687]
[1763334156594,0.323,94016.0,94008.0,0.07563687]
[1763334156828,0.323,94016.0,94014.0,0.00487286]
[1763334157031,0.323,94016.0,94007.0,0.07563687]
[1763334157241,0.323,94016.0,94008.0,0.07563687]
[1763334157731,0.323,94027.0,94011.0,0.07563687]
[1763334157964,0.01981697,94026.0,94010.0,0.07563687]
[1763334158177,0.01981697,94026.0,93999.0,0.0312]
[1763334158178,0.01981697,94025.0,94005.0,0.07563687]
[1763334158401,0.01981697,94024.0,94004.0,0.07563687]
[1763334158635,0.323,94013.0,93995.0,0.00044427]
[1763334158880,0.323,93999.0,93958.0,0.07563687]
[1763334159103,0.323,93999.0,93951.0,0.07563687]
[1763334159104,0.01981697,93998.0,93951.0,0.07563687]
[1763334159353,0.01981697,93998.0,93921.0,0.18409719]
[1763334159354,0.36641874,93996.0,93948.0,0.07563687]
[1763334159592,0.04341874,93978.0,93936.0,0.07563687]
[1763334159820,0.04341874,93978.0,93929.0,0.07563687]
[1763334159821,0.34281697,93977.0,93929.0,0.07563687]
[1763334160057,0.323,93959.0,93924.0,0.07563687]
[1763334160311,0.00999999,93950.0,93903.0,0.13091582]
[1763334160557,0.01981697,93949.0,93898.0,0.07563687]
[1763334160786,0.01981697,93949.0,93878.0,0.13091582]
[1763334160787,0.01981697,93949.0,93894.0,0.07563687]
[1763334160788,0.323,93939.0,93894.0,0.07563687]
[1763334161011,0.01981697,93938.0,93892.0,0.07563687]
[1763334161239,0.323,93919.0,93892.0,0.00013308]
[1763334161479,0.323,93919.0,93870.0,0.0004]
[1763334161480,0.323,93901.0,93870.0,0.0004]
[1763334161697,0.04341874,93898.0,93870.0,0.0004]
[1763334161926,0.01981697,93897.0,93870.0,0.0004]
[1763334162140,0.01981697,93896.0,93870.0,0.0004]
[1763334162346,0.323,93900.0,93870.0,0.0004]
[1763334162776,0.00028078,93899.0,93870.0,0.0004]
[1763334162990,0.323,93900.0,93870.0,0.0004]
[1763334163210,0.01970241,93899.0,93870.0,0.0004]
[1763334163424,0.81520629,93900.0,93870.0,0.0004]
[1763334163425,0.323,93879.0,93870.0,0.0004]
[1763334163644,1.37482002,93879.0,93870.0,0.0004]
[1763334163878,2.4357683,93879.0,93870.0,0.0004]
[1763334164118,2.4357683,93879.0,93809.0,0.07563687]
[1763334164119,0.0196704,93878.0,93809.0,0.07563687]
[1763334164341,0.0196704,93878.0,93870.0,0.01]
[1763334164342,0.36641874,93875.0,93870.0,0.01]
[1763334164562,2.36641874,93871.0,93870.0,0.01]
[1763334164779,2.36641874,93871.0,93760.0,0.00999999]
[1763334164780,0.36641874,93857.0,93778.0,0.13931687]
[1763334165007,0.36641874,93857.0,93773.0,0.0312]
[1763334165008,0.04341874,93849.0,93773.0,0.0312]
[1763334165238,0.04341874,93849.0,93761.0,0.13091582]
[1763334165239,0.00999999,93810.0,93764.0,0.06510902]
[1763334165472,0.00999999,93810.0,93745.0,0.03246]
[1763334165473,0.323,93809.0,93745.0,0.03246]
[1763334165699,0.04910688,93808.0,93745.0,0.03246]
[1763334165912,0.04910688,93808.0,93735.0,0.06608]
[1763334166128,0.323,93789.0,93721.0,0.06608]
[1763334166353,2.43525821,93789.0,93721.0,0.06608]
[1763334166575,0.50220628,93770.0,93711.0,2.0]
[1763334166797,0.50220628,93750.0,93711.0,2.0]
[1763334167095,0.49220629,93730.0,93711.0,1.96148]
[1763334167337,0.00999999,93720.0,93711.0,0.75097]
[1763334167601,0.04341874,93714.0,93711.0,0.43330034]
[1763334167819,2.14276827,93720.0,93711.0,0.40901845]
[1763334167820,2.0,93718.0,93711.0,0.40901845]
[1763334168043,0.01944632,93717.0,93713.0,0.01334399]
[1763334168274,2.04341874,93699.0,93694.0,72.08622147]
[1763334168499,2.0,93696.0,93694.0,72.03239873]
[1763334168717,0.04341874,93695.0,93694.0,72.03239873]
[1763334168946,2.323,93695.0,93694.0,72.03239873]
[1763334169177,2.36641874,93695.0,93694.0,72.03239873]
[1763334169468,2.46641874,93695.0,93694.0,72.03239873]
[1763334169705,2.46641874,93695.0,93694.0,72.00839873]
[1763334169911,2.46841874,93695.0,93694.0,72.00839873]
[1763334170125,2.48768044,93695.0,93694.0,71.79568723]
[1763334170359,2.46641874,93695.0,93694.0,71.28198723]
[1763334170582,0.56841874,93695.0,93694.0,66.31668723]
[1763334170778,0.56841874,93695.0,93694.0,66.01981029]
[1763334171006,0.48760354,93695.0,93694.0,65.34468357]
[1763334171216,2.48960354,93695.0,93694.0,65.14259623]
[1763334171420,0.47041874,93695.0,93694.0,62.95056532]
[1763334171652,0.47041874,93695.0,93694.0,62.08759344]
[1763334171867,0.54297465,93695.0,93694.0,59.76004004]
[1763334172071,2.54297465,93695.0,93694.0,57.11906048]
[1763334172305,0.48553342,93695.0,93694.0,57.11878909]
[1763334172517,2.46641874,93695.0,93694.0,56.61213013]
[1763334172764,0.51985997,93695.0,93694.0,55.54213013]
[1763334173007,0.51985997,93695.0,93694.0,52.99678329]
[1763334173008,2.46641874,93695.0,93694.0,52.99678329]
[1763334173219,2.53890541,93695.0,93694.0,50.88811175]
[1763334173428,2.51985997,93695.0,93694.0,49.69177743]
[1763334173641,2.46641874,93695.0,93694.0,49.33017013]
[1763334173848,2.46641874,93695.0,93694.0,45.96826546]
[1763334174085,2.46641874,93695.0,93694.0,45.80023455]
[1763334174315,2.46641874,93695.0,93694.0,44.90340829]
[1763334174535,0.51985997,93695.0,93694.0,37.05581101]
[1763334174752,0.4853454,93695.0,93694.0,34.74218666]
[1763334174972,1.59288663,93695.0,93694.0,34.05136561]
[1763334175203,0.53878663,93695.0,93694.0,31.97700061]
[1763334175423,0.53878663,93695.0,93694.0,29.97184609]
[1763334175669,0.53878663,93695.0,93694.0,29.07943624]
[1763334175896,1.92374123,93695.0,93694.0,27.98010228]
[1763334176122,0.05359605,93695.0,93694.0,26.73898983]
[1763334176349,2.1127683,93699.0,93694.0,24.27437449]
[1763334176350,0.0530302,93698.0,93694.0,24.27437449]
[1763334176570,2.1127683,93699.0,93694.0,24.24768058]
[1763334176571,2.15359605,93695.0,93694.0,24.24768058]
[1763334176794,2.15359605,93695.0,93694.0,24.23415605]
[1763334177047,2.1,93695.0,93694.0,21.21026838]
[1763334177271,2.15359605,93695.0,93694.0,14.53296391]
[1763334177495,2.1,93695.0,93694.0,13.48555248]
[1763334177722,2.15359605,93695.0,93694.0,12.78603315]
[1763334178006,2.15359605,93695.0,93694.0,11.41511972]
[1763334178222,2.15359605,93695.0,93694.0,10.53995622]
[1763334178223,2.1,93695.0,93694.0,10.53995622]
[1763334178455,2.1,93695.0,93694.0,9.76761022]
[1763334178704,2.1,93695.0,93694.0,9.39295892]
[1763334178924,2.14341874,93695.0,93694.0,9.39295892]
[1763334179150,2.46641874,93695.0,93694.0,9.39295892]
[1763334179378,2.46641874,93695.0,93694.0,9.13749099]
[1763334179632,2.14341874,93695.0,93694.0,8.99473456]
[1763334179837,2.14341874,93695.0,93694.0,8.95183185]
[1763334179838,2.1,93695.0,93694.0,8.95183185]
[1763334180057,2.1,93695.0,93694.0,8.61198493]
[1763334180518,0.1,93695.0,93694.0,8.39927343]
[1763334180949,0.18584,93695.0,93694.0,8.39927343]
[1763334181161,0.35752,93695.0,93694.0,8.39927343]
[1763334182022,2.35752,93695.0,93694.0,8.18656193]
[1763334182239,0.27168,93695.0,93694.0,8.18656193]
[1763334182898,0.35752,93695.0,93694.0,8.18656193]